{"text_format":"1","workbook":"xlsx","n_sheets":2,"sheets":["Terceirizados","base"],"not_rendered":{"charts":0,"images":1,"macros":1,"external_links":0,"defined_names":3,"comments":0,"pivot_tables":0},"unopened":[],"bounds":{"document_bytes":16777216,"sheet_cells":100000,"rows_first":2000,"rows_last":500,"rows_between":2000,"halvings":0,"cell_chars":16384,"cell_head_chars":4096},"cells_cut":0,"cells_raw":0,"read":"whole","date_system":"1900"}

{"sheet":"Terceirizados","index":0,"n_rows":120,"n_cols":6,"rows_kept":120,"cut":false,"hidden":false,"merged":[[28,10,28,15],[31,10,31,15],[32,10,32,15],[0,0,0,5],[1,0,1,5],[2,0,2,5],[3,0,3,5],[4,0,4,5],[5,0,5,5],[6,0,6,5],[7,0,7,5],[8,0,8,5],[9,0,9,5]]}
["Ministério da Educação"]
["Universidade Federal Fluminense - UFF"]
["Empresa Brasileira de Serviços Hospitalares - EBSERH"]
["Hospital Universitário Antônio Pedro - HUAP"]
["NOVEMBRO/2025"]
["Empresa: Conquista Serviço e Terceirização de Mão de Obra LTDA."]
["CNPJ: 05.769.219/0001-73"]
["Contrato: 03/2021"]
["Objeto: Contratação de prestação de serviços de limpeza, conservação, higienização interna e externa e desinficção de superfícies"]
["Processo-SEI: 23818.000789/2022-11"]
["CPF \n","NOME COMPLETO","FUNÇÃO","LOTAÇÃO\n","LOCAL DE EXERCÍCIO","EFETIVO"]
["XXX.913.807-XX","ADELSON SILVA COUTINHO ROSA","Servente ","HUAP","COLETOR","FIXO"]
["XXX.157.807-XX","ADRIANA NEVES DOS SANTOS","Encarregado ","HUAP","BANCO DE SANGUE","FIXO"]
["XXX.325.647-XX","ALESSANDRO JUNIOR MELO LIMA","Servente ","HUAP","TERMINAIS","FIXO"]
["XXX.631.827-XX","ALISSON VARGAS BASTOS","Servente ","HUAP","BOX/HIPODERMIA","FIXO"]
["XXX.641.957-XX","ANA CAROLINA DA SILVA SANTANA ","Servente ","HUAP","COZINHA","FIXO"]
["XXX.102.977-XX","ANA MARIA DA SILVA ","Servente ","HUAP","1º ANDAR AMBULATORIO","FIXO"]
["XXX.210.217-XX","ANDREA REGINA DE SOUZA RIBEIRO","Servente ","HUAP","CTI","FIXO"]
["XXX.784.837-XX","ANDREA VIEIRA BLAZ BENJAMIN","Servente ","HUAP","7º ANDAR","FIXO"]
["XXX.919.167-XX","ANGELICA BARBOZA QUINTANILHA","Servente ","HUAP","HIPORDEMIA","FIXO"]
["XXX.058.647-XX","ANTONIO CARLOS LEMOS","Servente ","HUAP","HEMODINAMICA","FIXO"]
["XXX.474.087-XX","BARBARA CRISTINA SOUZA SANTOS","Servente ","HUAP","DIALISE","FIXO"]
["XXX.867.577-XX","BIANCA APARECIDA DE OLIVEIRA NEVES","Servente ","HUAP","ALMOXARIFADO/ MANUTENÇÃO","FIXO"]
["XXX.281.517-XX","BRUNO GABRIEL DA PENHA MATOS","Servente ","HUAP","METODOS GRAFICOS/ MEDICINA NUCLEAR","FIXO"]
["XXX.908.977-XX","CARLA ROSA DE OLIVEIRA ","Servente ","HUAP","UTI NEO","FIXO"]
["XXX.848.687-XX","CINTIA VINCLE DE OLIVEIRA","Servente ","HUAP","LACTARIO","FIXO"]
["XXX.751.997-XX","CLARA LUCIA ROCHA DA SILVA","Servente ","HUAP","2º ANDAR AMBULATORIO","FIXO"]
["XXX.908.147-XX","CLAUDIA DUARTE CARNEIRO","Servente ",null,"CC 3º ANDAR","FIXO"]
["XXX.872.497-XX","CLAUDIA GOMES DUARTE","Servente ","HUAP","NIR/ZELADORIA","FIXO"]
["XXX.764.555-XX","CLAUDIA SANTANA CUNHA","Servente ","HUAP","METODOS GRAFICOS/ MEDICINA NUCLEAR","FIXO"]
["XXX.485.777-XX","CLAUDIA SILVA GUIMARÃES","Servente ","HUAP","LABORATORIO","FIXO"]
["XXX.780.647-XX","CLEA ANTUNES DE SOUZA","Servente ","HUAP","5º ANDAR ANEXO","FIXO"]
["XXX.952.027-XX","CLEBER BARCELOS PESSANHA","Servente ","HUAP","CC 3º","FIXO"]
["XXX.419.297-XX","CRISTIANE DA SILVA","Servente ","HUAP","CTI","FIXO"]
["XXX.529.957-XX","CRISTIANE VIEIRA DA SILVA MOARES","Servente ","HUAP","EMERGENCIA BOX","FIXO"]
["XXX.641.247-XX","CRISTINA AZEVEDO DE JESUS ","Servente ","HUAP","CORINGA","FIXO"]
["XXX.529.957-XX","CRISTINA VIEIRA DOS SANTOS","Servente ","HUAP","MATERNIDADE","FIXO"]
["XXX.549.017-XX","DANIEL DOS SANTOS PINTO","Servente ","HUAP","CORINGA","FIXO"]
["XXX.253.027-XX","DIJANEIDE HORTENCIO DA SILVA","Servente ","HUAP","CME","FIXO"]
["XXX.969.217-XX","EDSON OLIVEIRA DOS SANTOS","Servente ","HUAP","COLETOR","FIXO"]
["XXX.183.127-XX","ERICA FERNANDA BATISTA VELOSO ","Servente ","HUAP","5º ANDAR","FIXO"]
["XXX.677.207-XX","ERICK SANTANA MORAES","Servente ","HUAP","CCM 6º ANDAR","FIXO"]
["XXX.179.737-XX","ERIKA DA CONCEICAO VIANNA","Servente ","HUAP","OCONLOGIA","FIXO"]
["XXX.186.198-XX","FABIO FERNANDO RIBEIRO","Servente ","HUAP","ROUPARIA /BANHEIOS HALLS","FIXO"]
["XXX.635.197-XX","FABIO MUNIZ CORTEZ","Servente ","HUAP","4 ANDAR ","FIXO"]
["XXX.973.937-XX","FERNANDA CONCEIÇÃO RODRIGUES DA SILVA ","Servente ","HUAP","5º ANDAR/ CC / ORL","FIXO"]
["XXX.204.317-XX","FLAVIA DA SILVA VICENTE","Servente ","HUAP","1º ANDAR AMBULATÓRIO","FIXO"]
["XXX.386.187-XX","FLAVIA ROSA DE ALMEIDA","Servente ","HUAP","UTI NEO","FIXO"]
[" XXX.482.647-XX","GIRLAINE PEREIRA SOUSA","Servente ","HUAP","BANCO DE SANGUE","FIXO"]
["XXX.397.757-XX","GLAUCIANE LIMA","Servente ","HUAP","7º ANDAR/ALZIRA","FIXO"]
["XXX.466.447-XX","HELEN DA CONCEICAO CARDIM","Lider de Turma ","HUAP","GERAL","FIXO"]
["XXX.183.017-XX","IRACEMA SATIRO OLIVEIRA","Servente ","HUAP","HEMATO","FIXO"]
["XXX.484.257-XX","ISRAEL BARRETO DA SILVA","Servente ","HUAP","6º ANDAR","FIXO"]
["XXX.255.627-XX","JANE VILAS BOAS DE OLIVEIRA","Servente ","HUAP","DIP","FIXO"]
["XXX.455.547-XX","JANETE VICENTE DE SOUZA","Servente ","HUAP","5º ANDAR","FIXO"]
["XXX.255.627-XX","JANE VILAS BOAS DE OLIVEIRA","Servente ","HUAP","DIP","FIXO"]
["XXX.352.487-XX","JENNIFER DE SOUZA MELO","Servente ","HUAP","CTI","FIXO"]
["XXX.649.747-XX","JESSICA CAPELLONI SILVA ","Servente ","HUAP","6º ANDAR","FIXO"]
["XXX.860.537-XX","JOCIARA DA SILVA SANTOS","Encarregado de Limpeza","HUAP","GERAL","FIXO"]
["XXX.565.867-XX","JOCIMAR DA SILVA SANTOS","Servente ","HUAP","CC 3º ANDAR","FIXO"]
["XXX.693.707-XX","JOICE MELO DOS SANTOS","Servente ","HUAP","7º ANDAR","FIXO"]
["XXX.795.247-XX","JOYCE ALVES MARINS ","Servente ","HUAP","CC 3º ANDAR","FIXO"]
["XXX.387.887-XX","JOSE ROMEU RANGEL CORDEIRO","Servente ","HUAP","COLETOR","FIXO"]
["XXX.349.197-XX","JOSENILDO DA SILVA TOMAZ ","Servente ","HUAP","DIALISE","FIXO"]
["XXX.007.127-XX","JOSINETE BARROS DA SILVA","Servente ","HUAP","NUTRIÇÃO","FIXO"]
["XXX.540.567-XX","JULIANA FERREIRA LIBANO","Servente ","HUAP","HEMATO","FIXO"]
["XXX.529.687-XX","KATIA CRISTINA  DE OLIVEIRA ABREU DOS SANTOS","Servente ","HUAP","AMBULATORIO","FIXO"]
["XXX.796.527-XX","LEANDRO DOS SANTOS FARIA","Servente ","HUAP","2º ANDAR RADIOLOGIA","FIXO"]
["XXX.592.687-XX","LETICIA DA CONCEIÇÃO GALDINO ","Servente ","HUAP","4 ANDAR ","FIXO"]
["XXX.007.347-XX","LEYDIANE BRUNA MARINHO DE HOLANDA ","Servente ","HUAP","7º ANDAR","FIXO"]
["XXX.415.827-XX","LUÃ VICTOR PEREIRA DA SILVA","Servente ","HUAP","CORINGA","FIXO"]
["XXX.661.987-XX","LUCIA HELENA DE AZEVEDO","Servente ","HUAP","UTI NEO","FIXO"]
["XXX.979.127-XX","LUCILENE GONCALVES","Lider de Turma ","HUAP","GERAL","FIXO"]
["XXX.907.757-XX","LUCIMAR CORREA DA SILVA","Servente ","HUAP","UCO","FIXO"]
["XXX.704.027-XX","LUCIMAR GOMES DE OLIVEIRA","Servente ","HUAP","EMERGENCIA BOX","FIXO"]
["XXX.734.837-XX","LUIS OTAVIO SOARES D COSTA","Servente ","HUAP","CCM 6º ANDAR","FIXO"]
["XXX.539.817-XX","LUIS VICTOR DA SILVA HILARIO","Servente ","HUAP","CC 3º ANDAR","FIXO"]
["XXX.977.457-XX","MARCO AURELIO AZEVEDO PAZ VIEIRA DE MOURA ","Servente ","HUAP","COLETOR","FIXO"]
["XXX.386.637-XX","MARCIO DE CARVALHO DA SILVA ","Servente ","HUAP","CTI","FIXO"]
["XXX.213.127-XX","MARIA ROSA","Servente ","HUAP","MATERNIDADE","FIXO"]
["XXX.406.757-XX","MARIELLY TRINDADE","Servente ","HUAP","7º andar","FIXO"]
["XXX.706.167-XX","MARILENE SOBRINHO DE ARAÚJO SANTOS","Servente ","HUAP","Ambulatório","FIXO"]
["XXX.919.147-XX","MARILIA PENA PESSANHA","Servente ","HUAP","6º ANDAR ANEXO","FIXO"]
["XXX.014.187-XX","MARILZA DA SILVA","Servente ","HUAP","MATERNIDADE","FIXO"]
["XXX.854.367-XX","MARIZETE COSTA GOMES","Servente ","HUAP","HEMODINAMICA","FIXO"]
["XXX.810.297-XX","MARIZETE DOS SANTOS SILVA DE OLIVEIRA","Servente ","HUAP","CADIS/GEP","FIXO"]
["XXX.337.327-XX","MARLI PEREIRA DA SILVA SOARES","Auxiliar de Serviços Gerais","HUAP","DLIH/ENG. QUIMICA","FIXO"]
["XXX.331.467-XX","MARLUCE CRISTINA MOTTA","Servente ","HUAP","ENDOSCOPIA","FIXO"]
["XXX.999.817-XX","MARTA CRISTINA PINTO ARAUJO","Servente ","HUAP","CC 3º ANDAR","FIXO"]
["XXX.017.147-XX","MAYARA CRISTINA SILVA DO PATROCINIO DANTAS","Servente ","HUAP","DIALISE","FIXO"]
["XXX.814.517-XX","MICHELE FERREIRA DA SILVA LOPES","Servente ","HUAP","CCIH","FIXO"]
["XXX.764.547-XX","MÔNICA PEREIRA BELEM","Servente ","HUAP","7º ANDAR","FIXO"]
["XXX.215.957-XX","MONICA RODRIGUES DA COSTA","Servente ","HUAP","CCM 6º ANDAR","FIXO"]
["XXX.693.347-XX","MONIQUE OLIVEIRA","Servente ","HUAP","UCO","FIXO"]
["XXX.819.027-XX","NAYARA FREITAS BARROS","Servente ","HUAP","ARQUIVO","FIXO"]
["XXX.291.257-XX","NOEMIR DA SILVA ","Servente ","HUAP","HEMODINAMICA","FIXO"]
["XXX.458.807-XX","NUENIR ALVES MARINS","Varredor","HUAP","MATERNIDADE","FIXO"]
["XXX.906.147-XX","PATRICIA LIMA EDUARDO","Servente ","HUAP","AMBULATORIO","FIXO"]
["XXX.623.197-XX","PAULO SERGIO DA SILVA NUSS","Servente ","HUAP","ONCOLOGIA","FIXO"]
["XXX.921.487-XX","RAIANE PRISCILA DA CONCEIÇÃO SILVA","Servente ","HUAP","AMBULATÓRIO","FIXO"]
["XXX.346.717-XX","RAQUEL MARTINS SILVA NAZARETH","Servente ","HUAP","7º ANDAR/ALZIRA","FIXO"]
["XXX.912.387-XX","RITA DE CASSIA PEREIRA DOS SANTOS","Servente ","HUAP","CTI","FIXO"]
["XXX.225.547-XX","RODRIGO AUGUSTO","Servente ","HUAP","UCO","FIXO"]
["XXX.067.417-XX","SABRINA DINIZ JORGE","Servente ","HUAP","MATERNIDADE","FIXO"]
["XXX.509.437-XX","SARA CAETANO DA SILVA","Servente ","HUAP","2º ANDAR RADIOLOGIA","FIXO"]
["XXX.424.847-XX","SHENA DA SILVA DOS SANTOS","Servente ","HUAP","CC 3º ANDAR","FIXO"]
["XXX.347.667-XX","SIDIANE SALGUEIRO PEDRO","Servente ","HUAP","5º ANDAR PEDIATRIA","FIXO"]
["XXX.538.857-XX","SILVANA NASCIMENTO FERREIRA","Servente ","HUAP","FARMACIA","FIXO"]
["XXX.435.667-XX","SILVIANE DA SILVA PENHA","Servente ","HUAP","OFTALMO / LAMAP","FIXO"]
["XXX.263.477-XX","SIMONE DA SILVA GOMES","Servente ","HUAP","UCO","FIXO"]
["XXX.061.567-XX","SONIA MARINHO RODRIGUES DA SILVA","Servente ","HUAP","7º ANDAR CMF","FIXO"]
["XXX.830.057-XX","STEFANY CAROLINE ALBUES DOS SANTOS","Servente ","HUAP","UCO","FIXO"]
["XXX.192.157-XX","SUELI FORTUNATO MESSIAS DOS SANTOS PINTO","Servente ","HUAP","COLETA / PSQ","FIXO"]
["XXX.435.017-XX","TERESA REGINA ARAUJO ROZA","Servente ","HUAP","UCO","FIXO"]
["XXX.621.807-XX","VANESSA MENDES FERREIRA DA SILVA","Servente ","HUAP","GERAL","FIXO"]
["XXX.837.397-XX","VERA LUCIA DA CONCEIÇÃO SILVA","Servente ","HUAP","ORTOPEDIA","FIXO"]
["XXX.107.327-XX","VERONICA MARINS DE SOUZA","Servente ","HUAP","CTI","FIXO"]
["XXX.739.367-XX","VERUSKA MARIA GONÇALVES","Servente ","HUAP","Ambulatório","FIXO"]
["XXX.525.117-XX","VIVIANE VIANA PACÍFICO AMORIM","Servente ","HUAP","5º ANDAR ANEXO","FIXO"]
["XXX.486.877-XX","YURI GABRIELVIANA DE ANDRADE ","Servente ","HUAP","VARREDOR","FIXO"]

{"sheet":"base","index":1,"n_rows":79,"n_cols":10,"rows_kept":79,"cut":false,"hidden":false,"merged":[]}
[null,"Descrição Resumida","Descrição","CBO",null,"ESCOLARIDADE DO TERCEIRIZADO",null,"JORNADA DE TRABALHO"]
[null,"5134-05","Garçom",{"$f":"B2&\"_\"&C2","v":"5134-05_Garçom"},null,"00 - SEM EXIGENCIA",null,60]
[null,"AUXSERVDIV","Auxiliar de Serviços Diversos",{"$f":"B3&\"_\"&C3","v":"AUXSERVDIV_Auxiliar de Serviços Diversos"},null,"01 - NÃO SABE LER/ESCREVER",null,48]
[null,"OPPLANTDI","Operador Plantonista Diurno","OPPLANTDI_Operador Plantonista Diurno",null,"02 – ALFABETIZADO",null,44]
[null,"OPPLANTNO","Operador Plantonista Noturno","OPPLANTNO_Operador Plantonista Noturno",null,"03 – ENSINO FUNDAMENTAL INCOMPLETO",null,40]
[null,"4222-05","Telefonista","4222-05_Telefonista",null,"04 – ENSINO FUNDAMENTAL COMPLETO",null,36]
[null,7825,"Motorista","7825_Motorista",null,"05 – ENSINO MÉDIO INCOMPLETO",null,35]
[null,"7166-10","Pintor","7166-10_Pintor",null,"06 – ENSINO MÉDIO COMPLETO",null,30]
[null,"2142-05","Engenheiro Civil","2142-05_Engenheiro Civil",null,"07 - SUPERIOR INCOMPLETO",null,25]
[null,"2143-05","Engenheiro Elétrico","2143-05_Engenheiro Elétrico",null,"08 - SUPERIOR COMPLETO",null,20,null,"Informamos que as células que ficarem vermelhas, estão com algum tipo de erro."]
[null,"5143-10","Manutenção Predial","5143-10_Manutenção Predial",null,"09 – ESPECIALIZAÇÃO/RESIDÊNCIA",null,10]
[null,"7241-10","Bombeiro Hidráulico","7241-10_Bombeiro Hidráulico",null,"10 – CURSO TÉCNICO COMPLETO",null,"09",null,"Lembramos:"]
[null,2141,"Arquiteto e Urbanistas","2141_Arquiteto e Urbanistas",null,"11 – PÓS-GRADUAÇÃO",null,"08",null," - Que vários campos são obrigatórios."]
[null,"4101-05","Encarregado Administrativo","4101-05_Encarregado Administrativo",null,"12 – MESTRADO",null,"06",null," - o CPF será validado antes da exportação"]
[null,7832,"Carregador","7832_Carregador",null,"13 - DOUTORADO"]
[null,"4151-30","Operador de máquina reprográfica","4151-30_Operador de máquina reprográfica"]
[null,"7711-05","Marceneiro","7711-05_Marceneiro"]
[null,"4221-05","Recepcionista, em geral","4221-05_Recepcionista, em geral"]
[null,2123,"Administradores de tecnologia da informação","2123_Administradores de tecnologia da informação"]
[null,"2123-10","Administrador de redes","2123-10_Administrador de redes"]
[null,"2123-20","Administrador em segurança da informação","2123-20_Administrador em segurança da informação"]
[null,"4110-05","Auxiliar Administrativo","4110-05_Auxiliar Administrativo"]
[null,"5142-25","Limpeza e Conservação","5142-25_Limpeza e Conservação"]
[null,"5174-20","VIGIA","5174-20_VIGIA"]
[null,"5141-05","Ascensorista","5141-05_Ascensorista"]
[null,"9511-05","Eletricista","9511-05_Eletricista"]
[null,"5173-30","VIGILANTE","5173-30_VIGILANTE"]
[null,"5174-10","Porteiro","5174-10_Porteiro"]
[null,"7241-10","Encanador","7241-10_Encanador"]
[null,"4122-05","Contínuo","4122-05_Contínuo"]
[null,"7163-05","Vidraceiro","7163-05_Vidraceiro"]
[null,"7652-40","Tapeceiro","7652-40_Tapeceiro"]
[null,"7244-40","Serralheiro","7244-40_Serralheiro"]
[null,"7152-10","Pedreiro","7152-10_Pedreiro"]
[null,"7170-20","Auxiliar de Pedreiro","7170-20_Auxiliar de Pedreiro"]
[null,9501,"Supervisor de Manutenção","9501_Supervisor de Manutenção"]
[null,"7170-20","Ajudante de Obras","7170-20_Ajudante de Obras"]
[null,"5199-35","Lavador de Carro","5199-35_Lavador de Carro"]
[null,"4141-05","Almoxarife","4141-05_Almoxarife"]
[null,5171,"Brigadista","5171_Brigadista"]
[null,"5134-25","Copeiro","5134-25_Copeiro"]
[null,"9112-05","Mecânico de Ar-condicionado e Refrigeração","9112-05_Mecânico de Ar-condicionado e Refrigeração"]
[null,"9112-05","Auxiliar Mecânico de Ar Condicionado","9112-05_Auxiliar Mecânico de Ar Condicionado"]
[null,"3515-05","Técnico em secretariado","3515-05_Técnico em secretariado"]
[null,"1112-20","Secretário - executivo","1112-20_Secretário - executivo"]
[null,"4122-05","Mensageiro","4122-05_Mensageiro"]
[null,"5143-20","Auxiliar de Limpeza","5143-20_Auxiliar de Limpeza"]
[null,"2543-10","Agente de higiene e segurança","2543-10_Agente de higiene e segurança"]
[null,"5143-10","Auxiliar de manutenção predial","5143-10_Auxiliar de manutenção predial"]
[null,"5174-15","Controlador de Acesso","5174-15_Controlador de Acesso"]
[null,"7156-15","Eletricista de instalações","7156-15_Eletricista de instalações"]
[null,"9513-20","Monitor de sistemas eletrônicos de segurança exter","9513-20_Monitor de sistemas eletrônicos de segurança exter"]
[null,"9513-15","Monitor de sistemas eletrônicos de segurança inter","9513-15_Monitor de sistemas eletrônicos de segurança inter"]
[null,"5143-25","Oficial de manutenção predial","5143-25_Oficial de manutenção predial"]
[null,"2614-25","Tradutor-intérprete de libras","2614-25_Tradutor-intérprete de libras"]
[null,"6410-10","Operador de Maquinas Agrícolas","6410-10_Operador de Maquinas Agrícolas"]
[null,"8621-20","Operador de Caldeira","8621-20_Operador de Caldeira"]
[null,"6220-20","Trabalhador Agrícola","6220-20_Trabalhador Agrícola"]
[null,"5135-05","Auxiliar de Cozinha","5135-05_Auxiliar de Cozinha"]
[null,"5132-05","Cozinheiro","5132-05_Cozinheiro"]
[null,"8483-05","Padeiro","8483-05_Padeiro"]
[null,"6110-05","Agropecuarista","6110-05_Agropecuarista"]
[null,"4141-05","Auxiliar de almoxarifado","4141-05_Auxiliar de almoxarifado"]
[null,"4110-05","Auxiliar de escritório","4110-05_Auxiliar de escritório"]
[null,"6410-15","Tratorista operador de roçadeira","6410-15_Tratorista operador de roçadeira"]
[null,"9192-05","Mecânico de manutenção de roçadeiras","9192-05_Mecânico de manutenção de roçadeiras"]
[null,"9922-25","Auxiliar de jardinagem",{"$f":"B67&\"_\"&C67","v":"9922-25_Auxiliar de jardinagem"}]
[null,"6220-10","Jardineiro","6220-10_Jardineiro"]
[null,"2123-05","Administrador de banco de dados","2123-05_Administrador de banco de dados"]
[null,"2123-15","Administrador de sistemas operacionais","2123-15_Administrador de sistemas operacionais"]
[null,"2251-40","Médico do trabalho","2251-40_Médico do trabalho"]
[null,"3222-05","Técnico de enfermagem","3222-05_Técnico de enfermagem"]
[null,"4110-10","Assistente administrativo","4110-10_Assistente administrativo"]
[null,"2522-10","Assistente de controladoria","2522-10_Assistente de controladoria"]
[null,"4110-10","Assistente de escritório","4110-10_Assistente de escritório"]
[null,"2611-20","Editor executivo","2611-20_Editor executivo"]
[null,"2523-05","Secretária(o) executiva(o)","2523-05_Secretária(o) executiva(o)"]
[null,"1112-20","Secretário - executivo","1112-20_Secretário - executivo"]
[null,"6410-15","Tratorista agrícola","6410-15_Tratorista agrícola"]